[Event "Early-Titled-Tuesday-Blitz-August-29-2023"]
[Site "Chess.com"]
[Date "2023.08.29"]
[Round "3"]
[White "Colombiano07"]
[Black "only_strong_moves"]
[Result "0-1"]
[WhiteElo "2385"]
[BlackElo "2520"]
[TimeControl "180+1"]
[EndTime "8:28:37 PDT"]
[Termination "only_strong_moves won by resignation"]

1. d4 {[%clk 0:02:57.6]} 1... Nf6 {[%clk 0:02:59.5]} 2. c4 {[%clk 0:02:58]} 2...
e6 {[%clk 0:02:59.9]} 3. Nc3 {[%clk 0:02:58.1]} 3... Bb4 {[%clk 0:03:00]} 4. e3
{[%clk 0:02:58.7]} 4... d5 {[%clk 0:02:56.8]} 5. Ne2 {[%clk 0:02:59.6]} 5... c5
{[%clk 0:02:52.4]} 6. a3 {[%clk 0:02:58]} 6... Bxc3+ {[%clk 0:02:40.4]} 7. Nxc3
{[%clk 0:02:58.9]} 7... cxd4 {[%clk 0:02:34]} 8. exd4 {[%clk 0:02:59.8]} 8...
O-O {[%clk 0:02:31.5]} 9. Bg5 {[%clk 0:02:55.1]} 9... h6 {[%clk 0:02:31.6]} 10.
Bxf6 {[%clk 0:02:54.1]} 10... Qxf6 {[%clk 0:02:32.5]} 11. cxd5 {[%clk
0:02:54.5]} 11... exd5 {[%clk 0:02:33.4]} 12. Nxd5 {[%clk 0:02:54.8]} 12... Qg5
{[%clk 0:02:18.6]} 13. Ne3 {[%clk 0:02:29.6]} 13... Re8 {[%clk 0:02:10.1]} 14.
Be2 {[%clk 0:02:28.6]} 14... f5 {[%clk 0:01:58.9]} 15. O-O {[%clk 0:02:13.6]}
15... f4 {[%clk 0:01:58.7]} 16. Nc4 {[%clk 0:02:09]} 16... Nc6 {[%clk
0:01:36.6]} 17. Bf3 {[%clk 0:02:06.1]} 17... Be6 {[%clk 0:01:30.5]} 18. Bxc6
{[%clk 0:01:19]} 18... bxc6 {[%clk 0:01:10]} 19. Ne5 {[%clk 0:01:16.8]} 19...
Rad8 {[%clk 0:01:02.4]} 20. Nf3 {[%clk 0:01:05]} 20... Qg6 {[%clk 0:00:55.6]}
21. Qc1 {[%clk 0:00:59.4]} 21... Bh3 {[%clk 0:00:32.5]} 22. Nh4 {[%clk
0:00:46.7]} 22... Qg5 {[%clk 0:00:33]} 23. Qxc6 {[%clk 0:00:40.5]} 23... Bd7
{[%clk 0:00:11.3]} 24. Qc4+ {[%clk 0:00:04]} 24... Be6 {[%clk 0:00:11.7]} 25. d5
{[%clk 0:00:03.1]} 25... Bxd5 {[%clk 0:00:11.3]} 26. Nf3 {[%clk 0:00:02.7]}
26... Bxc4 {[%clk 0:00:09.9]} 27. Nxg5 {[%clk 0:00:03]} 27... Bxf1 {[%clk
0:00:10.6]} 0-1

[Event "Early-Titled-Tuesday-Blitz-August-29-2023"]
[Site "Chess.com"]
[Date "2023.08.29"]
[Round "3"]
[White "BlueWizzard"]
[Black "jk13"]
[Result "1-0"]
[WhiteElo "2894"]
[BlackElo "2653"]
[TimeControl "180+1"]
[EndTime "8:28:40 PDT"]
[Termination "BlueWizzard won by checkmate"]

1. d4 {[%clk 0:03:00.9]} 1... Nf6 {[%clk 0:02:59.9]} 2. Nf3 {[%clk 0:03:00.4]}
2... e6 {[%clk 0:03:00.5]} 3. Nbd2 {[%clk 0:02:58.1]} 3... d5 {[%clk 0:03:00.4]}
4. c4 {[%clk 0:02:55.7]} 4... Be7 {[%clk 0:02:51.9]} 5. g3 {[%clk 0:02:54.7]}
5... O-O {[%clk 0:02:52]} 6. Bg2 {[%clk 0:02:53.2]} 6... b6 {[%clk 0:02:52.6]}
7. O-O {[%clk 0:02:51.3]} 7... Bb7 {[%clk 0:02:53]} 8. b3 {[%clk 0:02:48.7]}
8... c5 {[%clk 0:02:49.2]} 9. Bb2 {[%clk 0:02:47.6]} 9... dxc4 {[%clk
0:02:47.8]} 10. Nxc4 {[%clk 0:02:46.5]} 10... cxd4 {[%clk 0:02:41.7]} 11. Qxd4
{[%clk 0:02:42.7]} 11... Qxd4 {[%clk 0:02:37.8]} 12. Nxd4 {[%clk 0:02:43.6]}
12... Bxg2 {[%clk 0:02:37.7]} 13. Kxg2 {[%clk 0:02:44.5]} 13... Rc8 {[%clk
0:02:36.8]} 14. Nb5 {[%clk 0:02:35.3]} 14... Nbd7 {[%clk 0:02:31.6]} 15. Rfd1
{[%clk 0:02:32.2]} 15... a6 {[%clk 0:02:19.6]} 16. Nbd6 {[%clk 0:02:32]} 16...
Rc6 {[%clk 0:02:19.3]} 17. Ne4 {[%clk 0:02:28.1]} 17... b5 {[%clk 0:01:47.5]}
18. Bxf6 {[%clk 0:02:27.6]} 18... Nxf6 {[%clk 0:01:48.4]} 19. Ne5 {[%clk
0:02:17.4]} 19... Rc2 {[%clk 0:01:45.6]} 20. Ng5 {[%clk 0:01:36.3]} 20... Rxe2
{[%clk 0:01:39.9]} 21. Re1 {[%clk 0:01:34.3]} 21... Rc2 {[%clk 0:01:08.3]} 22.
Ngxf7 {[%clk 0:01:06.9]} 22... Bc5 {[%clk 0:00:51.8]} 23. Rac1 {[%clk
0:01:06.7]} 23... Rxf2+ {[%clk 0:00:48.7]} 24. Kh3 {[%clk 0:01:07.1]} 24... Bf8
{[%clk 0:00:38.6]} 25. Ng5 {[%clk 0:01:00.6]} 25... Re8 {[%clk 0:00:38]} 26. a4
{[%clk 0:00:50.9]} 26... bxa4 {[%clk 0:00:37.7]} 27. bxa4 {[%clk 0:00:51.8]}
27... Ra2 {[%clk 0:00:37.9]} 28. Rc4 {[%clk 0:00:49.4]} 28... h6 {[%clk
0:00:29.7]} 29. Ne4 {[%clk 0:00:44.2]} 29... Nd5 {[%clk 0:00:26.5]} 30. Nc6
{[%clk 0:00:32.7]} 30... Kh7 {[%clk 0:00:21.3]} 31. Rd4 {[%clk 0:00:31.8]} 31...
Rc8 {[%clk 0:00:19.5]} 32. Rc4 {[%clk 0:00:29.8]} 32... Nb6 {[%clk 0:00:15.3]}
33. Rcc1 {[%clk 0:00:27.3]} 33... Nxa4 {[%clk 0:00:14]} 34. Nd4 {[%clk
0:00:22.2]} 34... Rxc1 {[%clk 0:00:13.3]} 35. Rxc1 {[%clk 0:00:23.1]} 35... e5
{[%clk 0:00:10.1]} 36. Ne6 {[%clk 0:00:22.7]} 36... Ba3 {[%clk 0:00:07.9]} 37.
Rc7 {[%clk 0:00:22.9]} 37... Kg6 {[%clk 0:00:07]} 38. g4 {[%clk 0:00:20.1]}
38... h5 {[%clk 0:00:06.2]} 39. Rxg7+ {[%clk 0:00:20.1]} 39... Kh6 {[%clk
0:00:06.2]} 40. g5# {[%clk 0:00:21]} 1-0

[Event "Early-Titled-Tuesday-Blitz-August-29-2023"]
[Site "Chess.com"]
[Date "2023.08.29"]
[Round "3"]
[White "IljaZaragatski"]
[Black "tptagain"]
[Result "1/2-1/2"]
[WhiteElo "2638"]
[BlackElo "2877"]
[TimeControl "180+1"]
[EndTime "8:28:40 PDT"]
[Termination "Game drawn by repetition"]

1. Nf3 {[%clk 0:03:00.9]} 1... d5 {[%clk 0:02:58.6]} 2. g3 {[%clk 0:03:00.8]}
2... c6 {[%clk 0:02:58.5]} 3. Bg2 {[%clk 0:03:00.2]} 3... Bg4 {[%clk 0:02:58.5]}
4. c4 {[%clk 0:03:00.4]} 4... e6 {[%clk 0:02:58.5]} 5. Qb3 {[%clk 0:02:57.4]}
5... Qc8 {[%clk 0:02:51.6]} 6. O-O {[%clk 0:02:50.5]} 6... Nd7 {[%clk
0:02:50.6]} 7. d3 {[%clk 0:02:48.5]} 7... Ngf6 {[%clk 0:02:48.1]} 8. Bf4 {[%clk
0:02:28.4]} 8... Be7 {[%clk 0:02:43.8]} 9. Nc3 {[%clk 0:02:27.1]} 9... O-O
{[%clk 0:02:38.5]} 10. Rac1 {[%clk 0:02:26.5]} 10... Bxf3 {[%clk 0:02:38.2]} 11.
Bxf3 {[%clk 0:02:26.3]} 11... d4 {[%clk 0:02:38.4]} 12. Na4 {[%clk 0:02:12.8]}
12... e5 {[%clk 0:02:30.9]} 13. Bg5 {[%clk 0:02:12.5]} 13... h6 {[%clk
0:02:29.8]} 14. Bxf6 {[%clk 0:02:12.4]} 14... Nxf6 {[%clk 0:02:30.3]} 15. c5
{[%clk 0:02:01.2]} 15... Re8 {[%clk 0:02:23.5]} 16. Qc4 {[%clk 0:01:57.9]} 16...
Qh3 {[%clk 0:02:13.7]} 17. Bg2 {[%clk 0:01:55.3]} 17... Qh5 {[%clk 0:02:13.7]}
18. Qc2 {[%clk 0:01:40.6]} 18... Rad8 {[%clk 0:02:07.6]} 19. b4 {[%clk
0:01:40.3]} 19... Nd5 {[%clk 0:02:04.5]} 20. Rfe1 {[%clk 0:01:25.8]} 20... Bg5
{[%clk 0:01:58.6]} 21. Rb1 {[%clk 0:01:24.2]} 21... a6 {[%clk 0:01:50.8]} 22.
Rb3 {[%clk 0:01:13.1]} 22... f5 {[%clk 0:01:31.3]} 23. Bxd5+ {[%clk 0:00:58.6]}
23... Rxd5 {[%clk 0:01:29.1]} 24. Nb6 {[%clk 0:00:58.5]} 24... Rdd8 {[%clk
0:01:27.8]} 25. Nc4 {[%clk 0:00:57.2]} 25... Qh3 {[%clk 0:01:23.1]} 26. Nd6
{[%clk 0:00:55.3]} 26... Re7 {[%clk 0:01:19.1]} 27. a4 {[%clk 0:00:47]} 27...
Rf8 {[%clk 0:00:58.3]} 28. b5 {[%clk 0:00:46.2]} 28... axb5 {[%clk 0:00:58.8]}
29. axb5 {[%clk 0:00:46.1]} 29... h5 {[%clk 0:00:59.1]} 30. bxc6 {[%clk
0:00:45]} 30... bxc6 {[%clk 0:01:00]} 31. Reb1 {[%clk 0:00:39]} 31... Re6 {[%clk
0:00:56]} 32. Qc4 {[%clk 0:00:34.9]} 32... f4 {[%clk 0:00:56]} 33. Rb8 {[%clk
0:00:29.9]} 33... Be7 {[%clk 0:00:52.7]} 34. Rxf8+ {[%clk 0:00:28.5]} 34... Bxf8
{[%clk 0:00:53.6]} 35. Rb8 {[%clk 0:00:26.9]} 35... Kh7 {[%clk 0:00:41.6]} 36.
Rxf8 {[%clk 0:00:26.4]} 36... h4 {[%clk 0:00:42]} 37. Nf7 {[%clk 0:00:13.6]}
37... Kg6 {[%clk 0:00:33.2]} 38. Nh8+ {[%clk 0:00:13.1]} 38... Kh7 {[%clk
0:00:33.1]} 39. Nf7 {[%clk 0:00:13.1]} 39... Kg6 {[%clk 0:00:33.7]} 40. Nh8+
{[%clk 0:00:09.5]} 40... Kh7 {[%clk 0:00:33.9]} 41. Nf7 {[%clk 0:00:09.3]}
1/2-1/2

[Event "Early-Titled-Tuesday-Blitz-August-29-2023"]
[Site "Chess.com"]
[Date "2023.08.29"]
[Round "3"]
[White "LileKoridze"]
[Black "HamedWafa4"]
[Result "1-0"]
[WhiteElo "2326"]
[BlackElo "2541"]
[TimeControl "180+1"]
[EndTime "8:28:40 PDT"]
[Termination "LileKoridze won by resignation"]

1. d4 {[%clk 0:03:00.9]} 1... Nf6 {[%clk 0:02:59.2]} 2. c4 {[%clk 0:03:00.6]}
2... e6 {[%clk 0:02:57.2]} 3. Nf3 {[%clk 0:03:00.1]} 3... Bb4+ {[%clk
0:02:56.3]} 4. Bd2 {[%clk 0:03:00.1]} 4... Bxd2+ {[%clk 0:02:54.9]} 5. Qxd2
{[%clk 0:03:00.2]} 5... O-O {[%clk 0:02:55.5]} 6. Nc3 {[%clk 0:03:00.3]} 6... d6
{[%clk 0:02:53.1]} 7. e4 {[%clk 0:02:59]} 7... Nc6 {[%clk 0:02:51.1]} 8. Bd3
{[%clk 0:02:58.4]} 8... e5 {[%clk 0:02:50.7]} 9. d5 {[%clk 0:02:57.8]} 9... Ne7
{[%clk 0:02:49.6]} 10. O-O {[%clk 0:02:57.6]} 10... Ng6 {[%clk 0:02:49.4]} 11.
b4 {[%clk 0:02:55.7]} 11... Nh5 {[%clk 0:02:44.8]} 12. g3 {[%clk 0:02:54.7]}
12... Bh3 {[%clk 0:02:39.1]} 13. Rfe1 {[%clk 0:02:54.7]} 13... Bg4 {[%clk
0:02:38.5]} 14. Qe3 {[%clk 0:02:52.1]} 14... h6 {[%clk 0:02:05.8]} 15. c5 {[%clk
0:02:49.9]} 15... Nf6 {[%clk 0:02:05]} 16. Rac1 {[%clk 0:02:47.3]} 16... Nh7
{[%clk 0:02:03.2]} 17. cxd6 {[%clk 0:02:42.3]} 17... cxd6 {[%clk 0:02:02]} 18.
h4 {[%clk 0:02:34]} 18... Ne7 {[%clk 0:01:46]} 19. Nb5 {[%clk 0:02:25]} 19... a6
{[%clk 0:01:43.7]} 20. Nc3 {[%clk 0:02:24.7]} 20... f5 {[%clk 0:01:40.6]} 21.
exf5 {[%clk 0:02:18.6]} 21... Nxf5 {[%clk 0:01:38.2]} 22. Bxf5 {[%clk
0:02:17.8]} 22... Rxf5 {[%clk 0:01:36.4]} 23. Nd2 {[%clk 0:02:18.1]} 23... Qf8
{[%clk 0:01:27.9]} 24. Nde4 {[%clk 0:02:17.1]} 24... Nf6 {[%clk 0:01:25.2]} 25.
Qb6 {[%clk 0:02:09.6]} 25... Rd8 {[%clk 0:01:12.2]} 26. Qxb7 {[%clk 0:02:07.4]}
26... Nxe4 {[%clk 0:01:10.7]} 27. Nxe4 {[%clk 0:02:06.7]} 27... Bf3 {[%clk
0:01:11]} 28. Rc7 {[%clk 0:01:59.7]} 28... Kh8 {[%clk 0:00:52.4]} 29. Nd2 {[%clk
0:01:25]} 29... Bg4 {[%clk 0:00:40.8]} 30. Ne4 {[%clk 0:01:10.6]} 30... Bf3
{[%clk 0:00:26.2]} 31. Rc2 {[%clk 0:00:59.8]} 31... Rf7 {[%clk 0:00:19.8]} 32.
Qxa6 {[%clk 0:00:58.8]} 32... Bxe4 {[%clk 0:00:18.8]} 33. Rxe4 {[%clk
0:00:58.4]} 33... Rf5 {[%clk 0:00:17.1]} 34. Rec4 {[%clk 0:00:56.2]} 34... Qf6
{[%clk 0:00:16.4]} 35. Rc8 {[%clk 0:00:55.4]} 35... Rxc8 {[%clk 0:00:16.3]} 36.
Qxc8+ {[%clk 0:00:54.9]} 36... Kh7 {[%clk 0:00:16.7]} 37. Qe6 {[%clk 0:00:44.8]}
37... Qxe6 {[%clk 0:00:07.4]} 38. dxe6 {[%clk 0:00:45]} 38... Rf6 {[%clk
0:00:08.3]} 39. e7 {[%clk 0:00:44.5]} 39... Re6 {[%clk 0:00:08.5]} 40. Rc7
{[%clk 0:00:44.4]} 40... d5 {[%clk 0:00:09]} 41. Rd7 {[%clk 0:00:44.8]} 41... d4
{[%clk 0:00:09.2]} 42. b5 {[%clk 0:00:44.9]} 42... Kg6 {[%clk 0:00:09.6]} 43. b6
{[%clk 0:00:45.4]} 43... Kf7 {[%clk 0:00:08.8]} 44. b7 {[%clk 0:00:45.5]} 44...
Rb6 {[%clk 0:00:09.3]} 45. Rd8 {[%clk 0:00:44.2]} 1-0

[Event "Early-Titled-Tuesday-Blitz-August-29-2023"]
[Site "Chess.com"]
[Date "2023.08.29"]
[Round "3"]
[White "GMG"]
[Black "Fan_Of_Chucky"]
[Result "1-0"]
[WhiteElo "2717"]
[BlackElo "2479"]
[TimeControl "180+1"]
[EndTime "8:28:42 PDT"]
[Termination "GMG won by checkmate"]

1. d4 {[%clk 0:02:57.4]} 1... Nf6 {[%clk 0:02:54.4]} 2. c4 {[%clk 0:02:57.4]}
2... c5 {[%clk 0:02:55]} 3. Nf3 {[%clk 0:02:57.2]} 3... cxd4 {[%clk 0:02:51.5]}
4. Nxd4 {[%clk 0:02:58.1]} 4... e5 {[%clk 0:02:51.9]} 5. Nb5 {[%clk 0:02:57.9]}
5... d5 {[%clk 0:02:52.6]} 6. cxd5 {[%clk 0:02:58.8]} 6... Bc5 {[%clk
0:02:46.4]} 7. N5c3 {[%clk 0:02:58.4]} 7... O-O {[%clk 0:02:44.5]} 8. h3 {[%clk
0:02:53.3]} 8... Qb6 {[%clk 0:02:22.7]} 9. e3 {[%clk 0:02:50.9]} 9... Rd8 {[%clk
0:02:23.1]} 10. g4 {[%clk 0:02:47.7]} 10... Bb4 {[%clk 0:02:03.5]} 11. Bg2
{[%clk 0:02:45.8]} 11... e4 {[%clk 0:01:59.2]} 12. O-O {[%clk 0:02:42.4]} 12...
Na6 {[%clk 0:01:41.7]} 13. g5 {[%clk 0:02:37.9]} 13... Nd7 {[%clk 0:01:12.1]}
14. Nxe4 {[%clk 0:02:36.2]} 14... Nac5 {[%clk 0:01:11.3]} 15. Ng3 {[%clk
0:02:23]} 15... Qg6 {[%clk 0:00:53.8]} 16. a3 {[%clk 0:02:20.3]} 16... Ba5
{[%clk 0:00:47.6]} 17. b4 {[%clk 0:02:16.1]} 17... Bc7 {[%clk 0:00:46.8]} 18.
bxc5 {[%clk 0:02:14.9]} 18... Nxc5 {[%clk 0:00:43.4]} 19. f4 {[%clk 0:02:06.2]}
19... h6 {[%clk 0:00:38.8]} 20. h4 {[%clk 0:02:05.5]} 20... hxg5 {[%clk
0:00:36.7]} 21. hxg5 {[%clk 0:02:06.4]} 21... f6 {[%clk 0:00:34.2]} 22. Qh5
{[%clk 0:01:45]} 22... Qxh5 {[%clk 0:00:31.7]} 23. Nxh5 {[%clk 0:01:45.9]} 23...
Bg4 {[%clk 0:00:29.3]} 24. Ng3 {[%clk 0:01:39.8]} 24... fxg5 {[%clk 0:00:29.7]}
25. Nc3 {[%clk 0:01:30.2]} 25... gxf4 {[%clk 0:00:28.1]} 26. exf4 {[%clk
0:01:31.1]} 26... Nb3 {[%clk 0:00:24.4]} 27. Rb1 {[%clk 0:01:31]} 27... Nxc1
{[%clk 0:00:23]} 28. Rbxc1 {[%clk 0:01:31.9]} 28... g5 {[%clk 0:00:16.9]} 29.
Nce2 {[%clk 0:01:28.4]} 29... Bb6+ {[%clk 0:00:14.3]} 30. Kh2 {[%clk 0:01:20.9]}
30... Kg7 {[%clk 0:00:12.9]} 31. Ne4 {[%clk 0:01:08.4]} 31... Rh8+ {[%clk
0:00:08.3]} 32. Kg3 {[%clk 0:01:07.7]} 32... Bxe2 {[%clk 0:00:09]} 33. Nxg5
{[%clk 0:00:59.2]} 33... Bxf1 {[%clk 0:00:09.1]} 34. Rxf1 {[%clk 0:01:00.1]}
34... Rac8 {[%clk 0:00:05.5]} 35. Rf3 {[%clk 0:00:57.3]} 35... Rc2 {[%clk
0:00:02.5]} 36. Bh3 {[%clk 0:00:53.6]} 36... Kf6 {[%clk 0:00:02.4]} 37. Ne4+
{[%clk 0:00:53.3]} 37... Kg6 {[%clk 0:00:02.1]} 38. d6 {[%clk 0:00:49.1]} 38...
Rg8 {[%clk 0:00:02.4]} 39. Be6 {[%clk 0:00:45.8]} 39... Re8 {[%clk 0:00:02.5]}
40. f5+ {[%clk 0:00:44.2]} 40... Kg7 {[%clk 0:00:01.6]} 41. Kf4 {[%clk
0:00:42.3]} 41... Rc1 {[%clk 0:00:01.6]} 42. Rg3+ {[%clk 0:00:41.4]} 42... Kf8
{[%clk 0:00:01.6]} 43. Rg8# {[%clk 0:00:39.9]} 1-0

[Event "Early-Titled-Tuesday-Blitz-August-29-2023"]
[Site "Chess.com"]
[Date "2023.08.29"]
[Round "3"]
[White "underthebridge1999"]
[Black "vladgoncharov"]
[Result "0-1"]
[WhiteElo "2314"]
[BlackElo "2565"]
[TimeControl "180+1"]
[EndTime "8:28:42 PDT"]
[Termination "vladgoncharov won by checkmate"]

1. e4 {[%clk 0:02:52.9]} 1... e6 {[%clk 0:02:59.7]} 2. d4 {[%clk 0:02:52.5]}
2... d5 {[%clk 0:02:59.5]} 3. Nd2 {[%clk 0:02:52.4]} 3... Be7 {[%clk 0:02:58.4]}
4. c4 {[%clk 0:02:50.1]} 4... dxe4 {[%clk 0:02:56.3]} 5. Nxe4 {[%clk 0:02:49.9]}
5... Nf6 {[%clk 0:02:52.4]} 6. Ng3 {[%clk 0:02:49.2]} 6... c5 {[%clk 0:02:50.3]}
7. Nf3 {[%clk 0:02:46.4]} 7... Nc6 {[%clk 0:02:49.9]} 8. Ne2 {[%clk 0:01:40.3]}
8... O-O {[%clk 0:02:43]} 9. g3 {[%clk 0:01:40.2]} 9... cxd4 {[%clk 0:02:24.7]}
10. Nexd4 {[%clk 0:01:38.6]} 10... Nxd4 {[%clk 0:02:23.2]} 11. Qxd4 {[%clk
0:01:32.8]} 11... Bb4+ {[%clk 0:02:15.7]} 12. Bd2 {[%clk 0:01:32.1]} 12... Qa5
{[%clk 0:02:15.2]} 13. a3 {[%clk 0:01:24.6]} 13... Bxd2+ {[%clk 0:02:10.2]} 14.
Qxd2 {[%clk 0:01:24.2]} 14... Qc7 {[%clk 0:02:07.8]} 15. Be2 {[%clk 0:01:17.6]}
15... b6 {[%clk 0:02:00.2]} 16. O-O {[%clk 0:01:14.2]} 16... Bb7 {[%clk
0:02:00]} 17. Rac1 {[%clk 0:01:13.4]} 17... Rad8 {[%clk 0:01:56]} 18. Qe3 {[%clk
0:01:13.5]} 18... Ng4 {[%clk 0:01:28.8]} 19. Qg5 {[%clk 0:01:07.5]} 19... f5
{[%clk 0:01:25.3]} 20. h3 {[%clk 0:01:02.3]} 20... Ne5 {[%clk 0:01:13.3]} 21.
Qe3 {[%clk 0:00:48.1]} 21... Bxf3 {[%clk 0:01:03.6]} 22. Bxf3 {[%clk 0:00:47.3]}
22... Rd3 {[%clk 0:00:53.7]} 23. Qe2 {[%clk 0:00:46.7]} 23... Nxf3+ {[%clk
0:00:47.7]} 24. Kg2 {[%clk 0:00:45.1]} 24... Rfd8 {[%clk 0:00:43.4]} 25. Rfd1
{[%clk 0:00:36.7]} 25... Rxd1 {[%clk 0:00:38.7]} 26. Rxd1 {[%clk 0:00:10.4]}
26... Rxd1 {[%clk 0:00:37.3]} 27. Qxd1 {[%clk 0:00:07.5]} 27... Ne5 {[%clk
0:00:33.2]} 28. Qe2 {[%clk 0:00:07.9]} 28... Qc6+ {[%clk 0:00:29]} 29. Kg1
{[%clk 0:00:07.6]} 29... Nxc4 {[%clk 0:00:29.1]} 30. Qc2 {[%clk 0:00:06.7]}
30... Ne5 {[%clk 0:00:27.2]} 31. Qe2 {[%clk 0:00:06.9]} 31... Nf3+ {[%clk
0:00:20.5]} 32. Kf1 {[%clk 0:00:06.5]} 32... Nd4 {[%clk 0:00:19.3]} 33. Qd3
{[%clk 0:00:05.5]} 33... Qh1# {[%clk 0:00:18.1]} 0-1

[Event "Early-Titled-Tuesday-Blitz-August-29-2023"]
[Site "Chess.com"]
[Date "2023.08.29"]
[Round "3"]
[White "AlexNovitz"]
[Black "brm72"]
[Result "0-1"]
[WhiteElo "2229"]
[BlackElo "2541"]
[TimeControl "180+1"]
[EndTime "8:28:42 PDT"]
[Termination "brm72 won on time"]

1. e4 {[%clk 0:03:00.9]} 1... c5 {[%clk 0:02:59.9]} 2. Nf3 {[%clk 0:02:59.1]}
2... Nc6 {[%clk 0:03:00.1]} 3. d4 {[%clk 0:02:58.8]} 3... cxd4 {[%clk 0:03:01]}
4. Nxd4 {[%clk 0:02:58.7]} 4... Nf6 {[%clk 0:03:01.5]} 5. Nc3 {[%clk 0:02:56.8]}
5... e6 {[%clk 0:03:01.9]} 6. Nxc6 {[%clk 0:02:48.6]} 6... bxc6 {[%clk
0:03:02.8]} 7. Bd3 {[%clk 0:02:44.9]} 7... d5 {[%clk 0:03:01.8]} 8. O-O {[%clk
0:02:42.8]} 8... Be7 {[%clk 0:03:01.4]} 9. Kh1 {[%clk 0:02:35.4]} 9... O-O
{[%clk 0:02:57.7]} 10. e5 {[%clk 0:02:35.3]} 10... Nd7 {[%clk 0:02:56.8]} 11. f4
{[%clk 0:02:36]} 11... c5 {[%clk 0:02:51.8]} 12. b3 {[%clk 0:02:05.3]} 12... Bb7
{[%clk 0:02:51]} 13. Bb2 {[%clk 0:01:49.1]} 13... f5 {[%clk 0:02:27]} 14. exf6
{[%clk 0:01:37.2]} 14... Bxf6 {[%clk 0:02:25.1]} 15. Na4 {[%clk 0:01:37.3]}
15... Bxb2 {[%clk 0:02:23.8]} 16. Nxb2 {[%clk 0:01:38.2]} 16... Qf6 {[%clk
0:02:20.7]} 17. Na4 {[%clk 0:01:26]} 17... Qh4 {[%clk 0:02:20.2]} 18. Qe2 {[%clk
0:00:44.9]} 18... Rf6 {[%clk 0:02:06.4]} 19. Kg1 {[%clk 0:00:39.8]} 19... Raf8
{[%clk 0:01:52.8]} 20. g3 {[%clk 0:00:38.7]} 20... Qh3 {[%clk 0:01:46.5]} 21. c4
{[%clk 0:00:36.9]} 21... Kh8 {[%clk 0:01:25.1]} 22. Rae1 {[%clk 0:00:27.3]}
22... g6 {[%clk 0:01:20.5]} 23. Nc3 {[%clk 0:00:18.3]} 23... h5 {[%clk
0:01:05.9]} 24. cxd5 {[%clk 0:00:18]} 24... exd5 {[%clk 0:01:05.1]} 25. Ba6
{[%clk 0:00:15.4]} 25... Ba8 {[%clk 0:01:04.3]} 26. Bb5 {[%clk 0:00:15.1]} 26...
Nb6 {[%clk 0:01:01.8]} 27. Qe5 {[%clk 0:00:13.3]} 27... Kh7 {[%clk 0:00:59.8]}
28. Qc7+ {[%clk 0:00:11]} 28... R8f7 {[%clk 0:00:58.7]} 29. Re7 {[%clk
0:00:10.8]} 29... Kg7 {[%clk 0:00:56.8]} 30. Qe5 {[%clk 0:00:07.4]} 30... h4
{[%clk 0:00:50.3]} 31. Be8 {[%clk 0:00:05.9]} 31... Kf8 {[%clk 0:00:36.1]} 32.
Rxf7+ {[%clk 0:00:05.3]} 32... Rxf7 {[%clk 0:00:37]} 33. Bxf7 {[%clk 0:00:03.9]}
33... Kxf7 {[%clk 0:00:37.9]} 34. Re1 {[%clk 0:00:02.3]} 34... Qd7 {[%clk
0:00:29.8]} 35. Qg5 {[%clk 0:00:01.4]} 35... d4 {[%clk 0:00:29.3]} 36. Ne4
{[%clk 0:00:01]} 36... Bxe4 {[%clk 0:00:28.5]} 37. Rxe4 {[%clk 0:00:01.9]} 37...
d3 {[%clk 0:00:29.4]} 38. gxh4 {[%clk 0:00:01.9]} 38... d2 {[%clk 0:00:29.1]}
0-1

[Event "Early-Titled-Tuesday-Blitz-August-29-2023"]
[Site "Chess.com"]
[Date "2023.08.29"]
[Round "3"]
[White "Druid24"]
[Black "Biregina"]
[Result "1-0"]
[WhiteElo "2663"]
[BlackElo "2459"]
[TimeControl "180+1"]
[EndTime "8:28:43 PDT"]
[Termination "Druid24 won on time"]

1. d4 {[%clk 0:03:00.9]} 1... d6 {[%clk 0:02:55.8]} 2. Bf4 {[%clk 0:02:46.9]}
2... Nd7 {[%clk 0:02:53.6]} 3. Nf3 {[%clk 0:02:42.3]} 3... c6 {[%clk 0:02:48.1]}
4. Nc3 {[%clk 0:02:40.2]} 4... Qc7 {[%clk 0:02:45.9]} 5. e4 {[%clk 0:02:39.8]}
5... e5 {[%clk 0:02:45.7]} 6. Bg3 {[%clk 0:02:37.8]} 6... Ngf6 {[%clk
0:02:44.6]} 7. a4 {[%clk 0:02:32.4]} 7... a5 {[%clk 0:02:38.4]} 8. Bc4 {[%clk
0:02:31.2]} 8... Be7 {[%clk 0:02:36.4]} 9. O-O {[%clk 0:02:30.5]} 9... O-O
{[%clk 0:02:36.1]} 10. Re1 {[%clk 0:02:15.6]} 10... Re8 {[%clk 0:02:08.5]} 11.
Ba2 {[%clk 0:01:51.5]} 11... Bf8 {[%clk 0:01:52.1]} 12. Qe2 {[%clk 0:01:44.6]}
12... b6 {[%clk 0:01:50]} 13. Qc4 {[%clk 0:01:39.2]} 13... Re7 {[%clk
0:01:39.7]} 14. Rad1 {[%clk 0:01:18.7]} 14... Ba6 {[%clk 0:01:31.7]} 15. Qb3
{[%clk 0:00:50.3]} 15... exd4 {[%clk 0:01:31]} 16. Rxd4 {[%clk 0:00:40.1]} 16...
Nc5 {[%clk 0:01:27.7]} 17. Qa3 {[%clk 0:00:38.9]} 17... Rd7 {[%clk 0:01:15.8]}
18. Red1 {[%clk 0:00:38.7]} 18... Nh5 {[%clk 0:00:48.7]} 19. b4 {[%clk
0:00:31.7]} 19... axb4 {[%clk 0:00:47.1]} 20. Qxb4 {[%clk 0:00:32.6]} 20... Nxg3
{[%clk 0:00:46.6]} 21. hxg3 {[%clk 0:00:33.5]} 21... d5 {[%clk 0:00:16.7]} 22.
Qb2 {[%clk 0:00:30.6]} 22... dxe4 {[%clk 0:00:12.9]} 23. Rxd7 {[%clk 0:00:30.2]}
23... Nxd7 {[%clk 0:00:13.4]} 24. Nxe4 {[%clk 0:00:30.8]} 24... Nc5 {[%clk
0:00:12.3]} 25. Neg5 {[%clk 0:00:29.6]} 25... h6 {[%clk 0:00:03.3]} 26. Nxf7
{[%clk 0:00:29.5]} 26... Kh7 {[%clk 0:00:03.5]} 27. c3 {[%clk 0:00:21.9]} 27...
Re8 {[%clk 0:00:03]} 28. Qc2+ {[%clk 0:00:21.7]} 28... Ne4 {[%clk 0:00:01.6]}
29. Re1 {[%clk 0:00:17.9]} 29... c5 {[%clk 0:00:01.1]} 30. Rxe4 {[%clk
0:00:17.1]} 30... Rxe4 {[%clk 0:00:02]} 31. Qxe4+ {[%clk 0:00:17.7]} 31... g6
{[%clk 0:00:02.9]} 32. N3e5 {[%clk 0:00:16.2]} 1-0